Cogmind - Beta 11 X5 @@@ ROGUE MODE // 2021.07.06 @ 12:08:59 Player: PhenomPhear Result: Destroyed by G-50 Soldier with Heavy Laser Performance ------------- Evolutions (4) 2000 Regions Visited (16) 3200 Robots Destroyed (205) 1025 Value Destroyed (8223) 8223 Prototype IDs (11) 220 Alien Tech Used (0) 0 Bonus (5465) 5465 TOTAL SCORE: 20133 Bonus ------- High Alert Combat Kills 1801 Follower Combat Kills 1180 Entered Garrisons 1000 Used RIF Installer 2000 Friendly Fire -516 Cogmind --------- Core Integrity 0/850 Matter 399/550 Energy 100/100 System Corruption 11% Temperature Cool (10) Movement Flying (40) Location -6/Garrison Parts ------- > --- POWER (1) -------- (None) > --- PROPULSION (4) --- Nuclear Pulse Thruster > --- UTILITY (8) ------ Advanced Heat Sink Matter Compressor Advanced Signal Interpreter Melee Analysis Suite Core Analyzer Relay Coupler [NC] (25) Relay Coupler [Sentry] (18) > --- WEAPON (2) ------- (None) > --- INVENTORY (5) ---- Microactuators Actuator Array Heavy Plasma Cannon Long-range Missile Launcher Long-range Missile Launcher Peak State ------------ > --- POWER ------------ Antimatter Reactor > --- PROPULSION ------- Heavy Treads Heavy Treads > --- UTILITY ---------- Improved Cooling System High-capacity Storage Unit Experimental Sensor Array Advanced Signal Interpreter Damper Plating > --- WEAPON ----------- Phase Cannon Katana > --- INVENTORY -------- Armored Treads Heavy Armor Plating Relay Coupler [Hunter] Relay Coupler [Hunter] Heavy Missile Launcher [Rating: 84] Favorites ----------- Power Cooled Ion Engine Engine Cooled Ion Engine Power Core Micro Nuclear Core Reactor Antimatter Reactor Propulsion Improved Treads Treads Improved Treads Leg Aluminum Leg Wheel Armored Huge Wheel Hover Unit Improved Hover Unit Flight Unit Nuclear Pulse Thruster Utility Huge Storage Unit Device Improved Cooling System Storage Huge Storage Unit Processor Advanced Signal Interpreter Hackware Hacking Suite Protection Light Armor Plating Weapon Ion Cannon Energy Gun Gatling Laser Energy Cannon Ion Cannon Ballistic Gun Assault Rifle Ballistic Cannon Light Cannon Launcher Rocket Launcher Special Weapon Remote Datajack Slashing Weapon Katana Build | -11 -10 -10 -9 -9 -9 -9 -7 -7 -7 -7 -6 -6 -6 -6 -6 -6 ------- Run | Scr Mat Min Mat Sto Gar Rec Fac Gar Fac Gar Fac Was Fac Gar Fac Gar Slots Evolved 8 | . . . 2 . . . 4 . . . 2 . . . . . Power . | . . . . . . . . . . . . . . . . . Propulsion 2 | . . . 1 . . . 1 . . . . . . . . . Utility 6 | . . . 1 . . . 3 . . . 2 . . . . . Weapon . | . . . . . . . . . . . . . . . . . Parts Attached 244 | 6 16 4 32 9 6 . 48 8 21 24 24 8 5 22 11 . Power 18 | 1 4 . 2 . . . 4 1 2 1 1 1 . 1 . . Engine 15 | 1 3 . 2 . . . 4 1 2 . 1 . . 1 . . Core 2 | . 1 . . . . . . . . 1 . . . . . . Reactor 1 | . . . . . . . . . . . . 1 . . . . Propulsion 46 | 2 3 . 14 4 . . 4 . 5 2 3 5 . 2 2 . Treads 25 | 2 1 . 9 4 . . 3 . . . . 4 . 2 . . Leg 10 | . 2 . 5 . . . . . . . 3 . . . . . Wheel 5 | . . . . . . . 1 . 1 2 . 1 . . . . Hover 4 | . . . . . . . . . 4 . . . . . . . Flight 2 | . . . . . . . . . . . . . . . 2 . Utility 97 | 1 5 1 7 4 . . 21 2 9 11 8 2 4 15 7 . Device 29 | . . . 4 . . . 6 1 1 . 4 1 2 8 2 . Storage 15 | 1 3 . 1 . . . 2 . 1 1 1 . 1 4 . . Processor 6 | . 1 . 1 . . . . . 1 . 1 . . . 2 . Hackware 23 | . 1 . 1 . . . 4 1 6 6 . . . 1 3 . Protection 24 | . . 1 . 4 . . 9 . . 4 2 1 1 2 . . Artifact . | . . . . . . . . . . . . . . . . . Weapon 83 | 2 4 3 9 1 6 . 19 5 5 10 12 . 1 4 2 . Energy Gun 9 | 1 1 . 2 . . . 4 . . . . . . 1 . . Energy Cannon 29 | . . . 7 . 1 . 8 2 . 2 6 . 1 2 . . Ballistic Gun 6 | 1 3 . . 1 1 . . . . . . . . . . . Ballistic Cannon 2 | . . 2 . . . . . . . . . . . . . . Launcher 22 | . . 1 . . 4 . 5 3 2 2 3 . . . 2 . Special Weapon 5 | . . . . . . . 2 . 1 2 . . . . . . Impact Weapon . | . . . . . . . . . . . . . . . . . Slashing Weapon 10 | . . . . . . . . . 2 4 3 . . 1 . . Piercing Weapon . | . . . . . . . . . . . . . . . . . Special Melee Weapon . | . . . . . . . . . . . . . . . . . Unidentified Prototypes 4 | . . . 2 . . . . . 1 . 1 . . . . . Corrupted Parts 1 | . . . . . . . . . . . 1 . . . . . System Corruption 6 | . . . . . . . . . . . 6 . . . . . Parts Lost 68 | . 4 2 7 2 . . 19 1 7 2 8 . . 14 . 2 Power 9 | . 1 . 1 . . . 3 . 1 1 . . . 2 . . Propulsion 23 | . 1 . 3 1 . . 5 . 1 1 6 . . 4 . 1 Utility 26 | . 1 1 . . . . 10 1 3 . 2 . . 7 . 1 Weapon 10 | . 1 1 3 1 . . 1 . 2 . . . . 1 . . Highest Loss Streak 10 | . 2 1 1 1 . . 5 1 6 1 5 . . 10 . 2 Average Slot Usage (%) 88 | . 98 95 94 91 100 100 88 75 75 90 92 50 60 72 52 64 Engine 7 | . 10 14 11 11 11 11 6 6 4 6 1 . . 3 . . Treads 16 | . 13 . 21 32 33 33 20 . . . . 11 13 15 . . Leg 3 | . 14 28 6 . . . . . . . 6 . . . . . Wheel 2 | . . . . . . . 2 7 3 20 14 1 . . . . Device 6 | . . . 13 . . . 10 8 3 . 11 9 9 14 3 6 Storage 9 | . 14 14 11 11 11 11 9 13 . 2 6 . 3 10 6 6 Processor 2 | . 4 . . 1 . . . . . 7 6 6 6 6 14 20 Hackware 9 | . 8 7 7 4 . . 9 10 36 22 13 6 2 1 19 19 Protection 8 | . . 2 1 16 22 22 10 11 . 12 13 6 7 5 . . Energy Gun 2 | . 12 . 2 . . . 3 1 . . . . . . . . Energy Cannon 8 | . . . 19 11 9 11 8 10 . . 10 . 2 3 . . Ballistic Gun 2 | . 15 3 . 3 3 . . . . . . . . . . . Launcher 1 | . . 2 . . 8 11 . 2 1 3 . . . . . . Slashing Weapon 1 | . . . . . . . . . 3 5 1 6 6 5 . . Naked Turns . | . . . . . . . . . . . . . . . . . Heaviest Build 149 | 13 31 37 102 107 108 108 146 149 122 59 65 66 126 126 6 6 Greatest Support 140 | 40 40 20 69 69 69 69 92 28 28 52 52 140 140 70 10 10 Greatest Overweight (x) 22 | 1 1 1 3 2 1 1 5 5 4 1 4 2 1 22 1 1 Average Overweight (x) . | . . 1 . 1 1 1 2 4 . . . . . 1 . . Largest Inventory Capacity 25 | 8 25 15 25 25 25 25 25 25 25 15 15 5 20 20 5 5 Average Capacity 17 | 7 14 15 16 25 25 25 25 25 7 8 14 5 14 18 5 5 Most Carried 25 | 1 12 14 16 17 20 20 25 25 25 13 15 5 8 20 5 5 Average Carried 13 | . 6 10 14 16 17 20 21 22 7 5 13 5 5 12 4 5 Final Capacity 25 | 8 15 15 25 25 25 25 25 25 5 15 5 5 20 5 5 5 Final Carried 25 | 1 11 14 15 17 20 20 21 25 5 12 5 5 6 5 5 5 Class Distribution -------------------- 55% | Mutant 16% | Scavenger-Mutant 14% | Bothacker-Mutant 6% | Commander-Mutant 4% | Hacker-Mutant Dominant Class ---------------- Scavenger-Mutant | -10/Materials Mutant | -10/Mines Mutant | -9/Materials Mutant | -9/Storage Mutant | -9/Garrison Commander-Mutant | -9/Recycling Mutant | -7/Factory Bothacker-Mutant | -7/Garrison Bothacker-Mutant | -7/Factory Bothacker-Mutant | -7/Garrison Bothacker-Mutant | -6/Factory Mutant | -6/Waste Scavenger-Mutant | -6/Factory Scavenger-Mutant | -6/Garrison Mutant | -6/Factory Mutant | -6/Garrison Resources | -11 -10 -10 -9 -9 -9 -9 -7 -7 -7 -7 -6 -6 -6 -6 -6 -6 ----------- Run | Scr Mat Min Mat Sto Gar Rec Fac Gar Fac Gar Fac Was Fac Gar Fac Gar Matter Collected 4182 | 174 370 222 325 90 28 186 826 298 278 638 197 282 94 174 . . Remotely . | . . . . . . . . . . . . . . . . . Salvage Created 7094 | . 588 26 2099 396 234 . 1330 311 144 867 418 . 227 420 34 . Parts 379 | . 41 2 111 23 29 . 65 19 8 35 20 . 6 19 1 . Haulers Intercepted 9 | . 2 . 4 1 . . 1 . . . . . 1 . . . Recyclers Shooed 4 | . 3 . . . . . 1 . . . . . . . . . Parts Field Recycled . | . . . . . . . . . . . . . . . . . Retrieved Matter . | . . . . . . . . . . . . . . . . . Parts Self-Destructed . | . . . . . . . . . . . . . . . . . Prevented . | . . . . . . . . . . . . . . . . . Kills | -11 -10 -10 -9 -9 -9 -9 -7 -7 -7 -7 -6 -6 -6 -6 -6 -6 ------- Run | Scr Mat Min Mat Sto Gar Rec Fac Gar Fac Gar Fac Was Fac Gar Fac Gar Combat Hostiles Destroyed 181 | . 13 10 44 4 16 . 34 16 6 15 12 . 2 7 2 . Melee 10 | . . . 1 . . . . . 1 5 . . . 3 . . Guns 24 | . 13 . . . . . 10 1 . . . . . . . . Cannons 67 | . . 4 40 3 . . 11 . . . 3 . 2 4 . . AOE 74 | . . 6 . . 16 . 11 15 5 10 9 . . . 2 . Classes Destroyed 17 | . 4 1 7 . . . 4 . . 1 . . . . . . Worker 7 | . . . 1 1 . . 4 . 1 . . . . . . . Builder 4 | . . . 1 . . . 2 . . . . . 1 . . . Tunneler 1 | . . . . . . . 1 . . . . . . . . . Hauler 9 | . 2 . 4 1 . . 1 . . . . . 1 . . . Recycler 4 | . . . 1 1 . . 1 . . . 1 . . . . . Operator 4 | . 1 . 2 . . . . . 1 . . . . . . . Watcher 2 | . . . 2 . . . . . . . . . . . . . Swarmer 46 | . 3 3 7 . 10 . 3 9 2 4 3 . . . 2 . Grunt 78 | . 10 . 25 . 3 . 15 4 3 7 6 . . 5 . . Brawler 3 | . . . . . . . 1 2 . . . . . . . . Duelist 12 | . . . 3 . . . 6 . . 2 1 . . . . . Protector 1 | . . . 1 . . . . . . . . . . . . . Sentry 19 | . . . 8 4 3 . 2 . 1 . 1 . . . . . Hunter 4 | . . . . . . . 2 . . 1 . . 1 . . . Programmer 10 | . . . . . . . 5 1 . 1 1 . 1 1 . . Behemoth 3 | . . . . . . . . . . 2 . . . 1 . . Assembled 7 | . . 7 . . . . . . . . . . . . . . Best Kill Streak 10 | . 3 3 10 2 10 . 9 10 4 6 4 . 3 2 2 . Combat Bots Only 10 | . 3 3 5 1 10 . 7 10 3 6 4 . 1 2 2 . Max Kills in Single Turn 4 | . 1 2 2 1 3 . 3 3 2 4 2 . 1 1 2 . Gunslinging . | . . . . . . . . . . . . . . . . . Exploded 4 | . . 2 . . 3 . 2 3 2 4 2 . . . 2 . Melee 1 | . . . 1 . . . . . 1 1 . . . 1 . . Uniques/NPCs Destroyed . | . . . . . . . . . . . . . . . . . Combat | -11 -10 -10 -9 -9 -9 -9 -7 -7 -7 -7 -6 -6 -6 -6 -6 -6 -------- Run | Scr Mat Min Mat Sto Gar Rec Fac Gar Fac Gar Fac Was Fac Gar Fac Gar Damage Taken 13578 | . 796 417 1862 460 303 . 2957 467 483 825 1231 . 864 2579 62 272 Core 1809 | . 90 88 255 78 10 . 193 55 136 48 276 . 43 338 12 187 Absorbed by Shields 257 | . . . . . . . . . . 28 . . . 229 . . Reduced by Siege Mode 54 | . . . . . . . . . . . . . . 54 . . Core Remaining (%) 45 | 100 . 28 . . . 14 . . . 38 . . . . . . Volleys Fired 469 | . 66 16 121 31 13 1 104 19 15 31 27 . 11 13 1 . Largest 2 | . 2 2 2 2 2 1 2 2 2 1 2 . 1 2 1 . Hottest 180 | . 60 70 136 120 63 33 145 145 69 39 180 . 90 180 43 . Shots Fired 744 | . 131 23 242 33 18 1 164 23 17 31 30 . 11 19 1 . Gun 182 | . 131 1 . . . . 46 4 . . . . . . . . Cannon 420 | . . 14 242 33 1 . 78 6 . . 16 . 11 19 . . Launcher 108 | . . 8 . . 17 1 27 13 10 17 14 . . . 1 . Special 34 | . . . . . . . 13 . 7 14 . . . . . . Kinetic 97 | . 82 15 . . . . . . . . . . . . . . Thermal 505 | . 49 . 242 33 1 . 124 10 . . 16 . 11 19 . . Explosive 108 | . . 8 . . 17 1 27 13 10 17 14 . . . 1 . Electromagnetic . | . . . . . . . . . . . . . . . . . Robot Hit Streak 21 | . 12 19 21 20 8 . 20 5 4 6 10 . 12 9 . . Robot Miss Streak 4 | . 3 4 3 1 1 2 4 3 2 2 2 . 2 3 1 . Penetration Max . | . . . . . . . . . . . . . . . . . Secondary Targets 1 | . 1 . . . . . . . . . . . . . . . Max Gunslinging Chain 1 | . 1 . . . . . . . . . . . . . . . Shots Hit Robots 590 | . 97 11 164 28 6 . 124 13 13 54 21 . 18 41 . . Core Hits 351 | . 31 18 57 6 21 . 102 28 14 29 24 . 5 14 2 . Critical Kills 2 | . . . 2 . . . . . . . . . . . . . Critical Parts Destroyed . | . . . . . . . . . . . . . . . . . Critical Strikes 11 | . . . 2 . . . . . . 4 . . 1 4 . . Meltdown 2 | . . . 2 . . . . . . . . . . . . . Sever 9 | . . . . . . . . . . 4 . . 1 4 . . Melee Attacks 104 | . . . . . . . . . 3 41 8 . 12 40 . . Impact . | . . . . . . . . . . . . . . . . . Slashing 104 | . . . . . . . . . 3 41 8 . 12 40 . . Piercing . | . . . . . . . . . . . . . . . . . Sneak Attacks 5 | . . . . . . . . . 1 2 1 . 1 . . . Combat Hostiles . | . . . . . . . . . . . . . . . . . Follow-up Attacks . | . . . . . . . . . . . . . . . . . Damage Inflicted 22552 | . 1087 616 3850 646 804 72 5006 2300 861 3126 2078 . 662 1288 156 . Guns 2368 | . 1082 13 . . . . 1183 90 . . . . . . . . Cannons 7021 | . . 127 3830 645 . . 1455 33 . . 355 . 286 290 . . Explosions 9480 | . . 476 . . 804 45 2313 2177 675 1240 1594 . . . 156 . Melee 3560 | . . . . . . . . . 186 1886 123 . 367 998 . . Ramming 123 | . 5 . 20 1 . 27 55 . . . 6 . 9 . . . Kinetic 858 | . 718 140 . . . . . . . . . . . . . . Thermal 8531 | . 364 . 3830 645 . . 2638 123 . . 355 . 286 290 . . Explosive 9480 | . . 476 . . 804 45 2313 2177 675 1240 1594 . . . 156 . Electromagnetic . | . . . . . . . . . . . . . . . . . Impact . | . . . . . . . . . . . . . . . . . Slashing 3560 | . . . . . . . . . 186 1886 123 . 367 998 . . Piercing . | . . . . . . . . . . . . . . . . . Highest Corruption 11 | . . 5 1 1 1 1 . . 2 2 11 11 11 11 11 11 Average Corruption 4 | . . 5 1 1 1 1 . . 1 2 6 11 11 11 11 11 Corruption Purged . | . . . . . . . . . . . . . . . . . Effects 148 | . . 8 6 6 1 6 . . 9 9 13 17 16 40 8 9 Message Errors 47 | . . 4 4 3 . 2 . . 3 4 4 5 6 9 1 2 Matter Fused 24 | . . 2 . . . . . . . . 1 3 7 7 2 2 Heat Flow Errors 15 | . . 2 . . . . . . 3 . 1 1 1 4 2 1 Energy Discharges 23 | . . . 2 1 1 1 . . . 1 3 4 . 9 . 1 Data Loss (minor) 27 | . . . . 2 . 3 . . 3 4 2 1 2 7 1 2 Data Loss (major) 6 | . . . . . . . . . . . 1 3 . 1 1 . Misfires 1 | . . . . . . . . . . . . . . 1 . . Alerts 1 | . . . . . . . . . . . . . . 1 . . Misdirections 3 | . . . . . . . . . . . . . . 1 1 1 Weapon Failures 1 | . . . . . . . . . . . 1 . . . . . Overload Shots . | . . . . . . . . . . . . . . . . . Overflow Damage 717 | . . 53 30 . 8 14 124 45 . 137 269 . 37 . . . Projectiles 50 | . . . 30 . . . 14 . . . . . 6 . . . Explosions 426 | . . 53 . . 8 14 110 45 . 35 161 . . . . . Melee 241 | . . . . . . . . . . 102 108 . 31 . . . Knockbacks 2 | . . 1 . . . 1 . . . . . . . . . . Impact 1 | . . . . . . 1 . . . . . . . . . . Kinetic 1 | . . 1 . . . . . . . . . . . . . . Secondary . | . . . . . . . . . . . . . . . . . Self-Inflicted Damage 553 | . . 65 . . 36 . 67 81 41 97 128 . . . 38 . Shots 21 | . . 5 . . 1 . 2 3 3 3 3 . . . 1 . Rammed 13 | . 1 . 5 1 . 1 5 . . . . . . . . . Targets Rammed 18 | . 2 . 6 1 . 1 5 . . . 2 . 1 . . . Kicked 3 | . 1 . . . . . . . . . 2 . . . . . Crushed 2 | . . . 1 . . . . . . . . . 1 . . . Highest Temperature 523 | . 69 275 48 265 93 . 148 94 254 29 225 136 523 192 251 231 Average Temperature 60 | . 25 78 14 86 41 . 49 39 82 11 77 67 174 64 108 137 Received Heat Transfer 4685 | . 405 . 723 213 72 . 1062 126 171 165 462 . 54 1109 . 123 Effects 3 | . . . . 1 . . . . . . . . 2 . . . Shutdowns 1 | . . . . . . . . . . . . . 1 . . . Interference 1 | . . . . 1 . . . . . . . . . . . . Short Circuit 1 | . . . . . . . . . . . . . 1 . . . Siege Activations 1 | . . . . . . . . . . . . . . 1 . . Total Turns 28 | . . . . . . . . . . . . . . 28 . . Longest Duration 28 | . . . . . . . . . . . . . . 28 . . Robots Corrupted . | . . . . . . . . . . . . . . . . . Combat Hostiles . | . . . . . . . . . . . . . . . . . Parts Fried . | . . . . . . . . . . . . . . . . . Impact Corruptions . | . . . . . . . . . . . . . . . . . Robots Melted 6 | . . . 3 1 . . 2 . . . . . . . . . Combat Hostiles 6 | . . . 3 1 . . 2 . . . . . . . . . Parts Melted 34 | . . . 16 1 . . 9 2 . 1 1 . 4 . . . Heat Transferred 13831 | . 825 . 6301 1036 . . 4357 212 . . 395 . 333 372 . . Parts Sabotaged . | . . . . . . . . . . . . . . . . . Parts Stolen . | . . . . . . . . . . . . . . . . . Parts Stripped . | . . . . . . . . . . . . . . . . . Power Chain Reactions 1 | . . . . . . . . . . . 1 . . . . . Missiles Intercepted . | . . . . . . . . . . . . . . . . . Alert | -11 -10 -10 -9 -9 -9 -9 -7 -7 -7 -7 -6 -6 -6 -6 -6 -6 ------- Run | Scr Mat Min Mat Sto Gar Rec Fac Gar Fac Gar Fac Was Fac Gar Fac Gar Peak Influence 1221 | . 188 92 941 657 798 418 1116 1221 705 711 845 303 264 131 125 99 Initial 974 | . . 7 . 397 413 358 974 774 640 215 373 278 44 28 43 87 Average 422 | . 67 59 395 520 593 235 823 1048 445 507 505 231 83 77 63 86 Maximum Alert Level 4 | . . . 3 2 3 2 4 4 3 3 3 1 1 . . . Low Security (%) 35 | 100 100 100 34 . . 47 . . . . . 20 86 100 100 100 Level 1 14 | . . . 12 14 . 45 . . 59 17 19 79 13 . . . Level 2 25 | . . . 36 85 70 6 8 . 37 71 70 . . . . . Level 3 23 | . . . 17 . 29 . 90 53 3 10 9 . . . . . Level 4 1 | . . . . . . . . 46 . . . . . . . . Level 5 . | . . . . . . . . . . . . . . . . . High Security . | . . . . . . . . . . . . . . . . . Max Security . | . . . . . . . . . . . . . . . . . Squads Dispatched 44 | . 3 . 9 4 . . 13 . 4 . 5 . 4 . 2 . Investigation 14 | . 2 . 4 1 . . 2 . 1 . 3 . . . 1 . Extermination 9 | . . . . . . . 5 . 1 . 1 . 1 . 1 . Reinforcement 13 | . 1 . 3 3 . . 2 . 1 . 1 . 2 . . . Assault 5 | . . . 2 . . . 3 . . . . . . . . . Garrison 3 | . . . . . . . 1 . 1 . . . 1 . . . Intercept . | . . . . . . . . . . . . . . . . . Construction Impeded 2 | . . . . 1 . . 1 . . . . . . . . . Haulers Reinforced 1 | . . . . . . . . . . . . . 1 . . . Cargo Convoy Interrupts 1 | . . . . . . . . . . . 1 . . . . . Stealth | -11 -10 -10 -9 -9 -9 -9 -7 -7 -7 -7 -6 -6 -6 -6 -6 -6 --------- Run | Scr Mat Min Mat Sto Gar Rec Fac Gar Fac Gar Fac Was Fac Gar Fac Gar Distress Signals 12 | . 1 1 8 . . . 1 . 1 . . . . . . . Communications Jammed . | . . . . . . . . . . . . . . . . . Distress Signals . | . . . . . . . . . . . . . . . . . Times Spotted 398 | . 27 12 73 21 15 54 69 18 20 21 26 6 12 11 5 8 Peak Tracking Total 9 | . 5 4 7 4 6 5 6 7 4 5 8 3 3 4 2 9 Tactical Retreats 10 | . . 2 1 1 . . 2 . . . . 1 . 1 2 . Traps | -11 -10 -10 -9 -9 -9 -9 -7 -7 -7 -7 -6 -6 -6 -6 -6 -6 ------- Run | Scr Mat Min Mat Sto Gar Rec Fac Gar Fac Gar Fac Was Fac Gar Fac Gar Traps Triggered 28 | . 1 . 1 1 4 . 1 6 3 2 4 . . 2 1 2 Indirectly . | . . . . . . . . . . . . . . . . . Trap Hack Attempts . | . . . . . . . . . . . . . . . . . Triggered . | . . . . . . . . . . . . . . . . . Disarmed . | . . . . . . . . . . . . . . . . . Reprogrammed . | . . . . . . . . . . . . . . . . . Reused . | . . . . . . . . . . . . . . . . . Traps Extracted . | . . . . . . . . . . . . . . . . . Installed . | . . . . . . . . . . . . . . . . . Triggered 1 | . . . . . . . . . . . 1 . . . . . Machines | -11 -10 -10 -9 -9 -9 -9 -7 -7 -7 -7 -6 -6 -6 -6 -6 -6 ---------- Run | Scr Mat Min Mat Sto Gar Rec Fac Gar Fac Gar Fac Was Fac Gar Fac Gar Machines Disabled 27 | . . . 3 1 1 1 7 2 2 3 5 . . 2 . . Max in Single Turn 2 | . . . 1 1 1 1 1 1 . 1 2 . . 1 . . Garrison Access 1 | . . . . . . . . . 1 . . . . . . . Garrison Relay 6 | . . . . . 1 . . 1 . 3 . . . 1 . . Machines Sabotaged . | . . . . . . . . . . . . . . . . . Garrisons Compromised 1 | . . . . . . . . . . . 1 . . . . . Overloaded Fab Kills 1 | . . . . . . . . . . . 1 . . . . . Fab Network Shutdowns . | . . . . . . . . . . . . . . . . . Hacking | -11 -10 -10 -9 -9 -9 -9 -7 -7 -7 -7 -6 -6 -6 -6 -6 -6 --------- Run | Scr Mat Min Mat Sto Gar Rec Fac Gar Fac Gar Fac Was Fac Gar Fac Gar Machines Accessed 52 | . 7 . 11 9 . 2 6 . 7 . 7 . 1 . 2 . Terminals 30 | . 5 . 6 6 . 1 5 . 4 . 2 . . . 1 . Fabricators 3 | . . . . . . . . . 1 . 2 . . . . . Repair Stations 4 | . . . 2 1 . . . . . . 1 . . . . . Recycling Units 7 | . 2 . 2 1 . 1 . . . . 1 . . . . . Scanalyzers 2 | . . . 1 . . . . . . . 1 . . . . . Garrison Access 6 | . . . . 1 . . 1 . 2 . . . 1 . 1 . Total Hacks 112 | . 18 . 29 19 . 7 10 . 16 . 9 . 1 . 3 . Successful 61 | . 12 . 14 12 . 2 4 . 11 . 4 . 1 . 1 . Failed 51 | . 6 . 15 7 . 5 6 . 5 . 5 . . . 2 . Catastrophic 4 | . . . 4 . . . . . . . . . . . . . Database Lockouts . | . . . . . . . . . . . . . . . . . Manual 37 | . 8 . 12 2 . . 5 . 7 . 3 . . . . . Terminals 69 | . 13 . 16 13 . 3 9 . 10 . 3 . . . 2 . Fabricators 5 | . . . . . . . . . 3 . 2 . . . . . Repair Stations 9 | . . . 6 2 . . . . . . 1 . . . . . Recycling Units 18 | . 5 . 4 3 . 4 . . . . 2 . . . . . Scanalyzers 4 | . . . 3 . . . . . . . 1 . . . . . Garrison Access 7 | . . . . 1 . . 1 . 3 . . . 1 . 1 . Terminal Hacks 24 | . 5 . 3 7 . 1 3 . 4 . 1 . . . . . Record 1 | . . . . . . . 1 . . . . . . . . . Robot Analysis 2 | . 2 . . . . . . . . . . . . . . . Prototype ID Bank 6 | . 2 . 1 2 . 1 . . . . . . . . . . Open Door 2 | . . . . 2 . . . . . . . . . . . . Machine Index 1 | . . . 1 . . . . . . . . . . . . . Alert Level 2 | . . . 1 . . . 1 . . . . . . . . . Unreport Threat 3 | . . . . . . . 1 . 2 . . . . . . . Recall Investigation 1 | . . . . 1 . . . . . . . . . . . . Recall Extermination 1 | . . . . . . . . . 1 . . . . . . . Hauler Manifests 1 | . . . . . . . . . 1 . . . . . . . Zone Layout 4 | . 1 . . 2 . . . . . . 1 . . . . . Fabricator Hacks 2 | . . . . . . . . . 2 . . . . . . . Load Schematic 1 | . . . . . . . . . 1 . . . . . . . Build 1 | . . . . . . . . . 1 . . . . . . . Repair Station Hacks 6 | . . . 4 2 . . . . . . . . . . . . Scan Component 3 | . . . 2 1 . . . . . . . . . . . . Repair 3 | . . . 2 1 . . . . . . . . . . . . Recycling Unit Hacks 6 | . 2 . 2 1 . 1 . . . . . . . . . . Report Inventory 1 | . . . 1 . . . . . . . . . . . . . Retrieve Components 5 | . 2 . 1 1 . 1 . . . . . . . . . . Scanalyzer 2 | . . . 2 . . . . . . . . . . . . . Insert Component 1 | . . . 1 . . . . . . . . . . . . . Analyze 1 | . . . 1 . . . . . . . . . . . . . Garrison Access Hacks 7 | . . . . 1 . . 1 . 3 . . . 1 . 1 . Unlock Access 6 | . . . . 1 . . 1 . 2 . . . 1 . 1 . Seal Access 1 | . . . . . . . . . 1 . . . . . . . Unauthorized Hacks 14 | . 5 . 3 1 . . . . 2 . 3 . . . . . Terminals 5 | . 3 . 1 . . . . . 1 . . . . . . . Assimilate 1 | . . . . . . . . . 1 . . . . . . . Botnet 3 | . 3 . . . . . . . . . . . . . . . Search 1 | . . . 1 . . . . . . . . . . . . . Fabricators 3 | . . . . . . . . . 1 . 2 . . . . . Siphon 1 | . . . . . . . . . 1 . . . . . . . Overload 1 | . . . . . . . . . . . 1 . . . . . Download 1 | . . . . . . . . . . . 1 . . . . . Repair Stations . | . . . . . . . . . . . . . . . . . Recycling Units 4 | . 2 . 1 1 . . . . . . . . . . . . Reject 3 | . 1 . 1 1 . . . . . . . . . . . . Mask 1 | . 1 . . . . . . . . . . . . . . . Scanalyzers 2 | . . . 1 . . . . . . . 1 . . . . . Extract 2 | . . . 1 . . . . . . . 1 . . . . . Garrison Access . | . . . . . . . . . . . . . . . . . Data Cores Recovered 1 | . . . . . . . . . 1 . . . . . . . Used . | . . . . . . . . . . . . . . . . . Hacking Detections 38 | . 5 . 9 7 . 2 4 . 5 . 3 . 1 . 2 . Full Trace Events 3 | . 1 . 1 . . . 1 . . . . . . . . . Feedback Events 1 | . . . 1 . . . . . . . . . . . . . Corruption 1 | . . . 1 . . . . . . . . . . . . . Feedback Blocked . | . . . . . . . . . . . . . . . . . Robot Schematics Acquired . | . . . . . . . . . . . . . . . . . Robots Built . | . . . . . . . . . . . . . . . . . Matter . | . . . . . . . . . . . . . . . . . Time . | . . . . . . . . . . . . . . . . . Total Robot Build Rating . | . . . . . . . . . . . . . . . . . Part Schematics Acquired 15 | . . . 11 . . . . . . . 4 . . . . . Parts Built 2 | . . . . . . . . . 2 . . . . . . . Matter 93 | . . . . . . . . . 93 . . . . . . . Time 62 | . . . . . . . . . 62 . . . . . . . Total Part Build Rating 4 | . . . . . . . . . 4 . . . . . . . Parts Repaired 3 | . . . 2 1 . . . . . . . . . . . . Time 276 | . . . 244 32 . . . . . . . . . . . . Parts Recycled . | . . . . . . . . . . . . . . . . . Recycled Matter . | . . . . . . . . . . . . . . . . . Retrieved Matter . | . . . . . . . . . . . . . . . . . Retrieved Components 37 | . 18 . 10 9 . . . . . . . . . . . . Parts Scanalyzed 1 | . . . 1 . . . . . . . . . . . . . Part Schematics Acquired 1 | . . . 1 . . . . . . . . . . . . . Parts Damaged 1 | . . . 1 . . . . . . . . . . . . . Bothacking | -11 -10 -10 -9 -9 -9 -9 -7 -7 -7 -7 -6 -6 -6 -6 -6 -6 ------------ Run | Scr Mat Min Mat Sto Gar Rec Fac Gar Fac Gar Fac Was Fac Gar Fac Gar Used RIF Installer 4 | . . . . . 1 . . 1 . 1 . . . 1 . . Hotswap 1 | . . . . . . . . 1 . . . . . . . . Threat Obfuscator 1 | . . . . . . . . . . 1 . . . . . . Robot Detection 1 | . . . . . . . . . . . . . . 1 . . Robots Hacked 17 | . . . . . . . 5 . 4 8 . . . . . . Non-combat 2 | . . . . . . . . . 2 . . . . . . . Combat 15 | . . . . . . . 5 . 2 8 . . . . . . Robot Hacks Applied 21 | . . . . . . . 7 . 4 10 . . . . . . parse_system 1 | . . . . . . . . . . 1 . . . . . . find_garrison 1 | . . . . . . . 1 . . . . . . . . . scatter_targeting 1 | . . . . . . . . . . 1 . . . . . . disrupt_area 1 | . . . . . . . 1 . . . . . . . . . spike_heat 6 | . . . . . . . 3 . . 3 . . . . . . overwrite_iff 2 | . . . . . . . . . . 2 . . . . . . formatsys_low 1 | . . . . . . . . . 1 . . . . . . . formatsys_high 8 | . . . . . . . 2 . 3 3 . . . . . . Relay Couplers Released 22 | . . . . . 3 . . 5 . 11 . . . 3 . . Machine Destruction 22 | . . . . . 3 . . 5 . 11 . . . 3 . . Attached 16 | . . . . . . . 2 1 3 6 . . . 1 3 . Robots Rewired 6 | . . . . . . 6 . . . . . . . . . . Allies Hacked . | . . . . . . . . . . . . . . . . . Hacks Repelled . | . . . . . . . . . . . . . . . . . Allies | -11 -10 -10 -9 -9 -9 -9 -7 -7 -7 -7 -6 -6 -6 -6 -6 -6 -------- Run | Scr Mat Min Mat Sto Gar Rec Fac Gar Fac Gar Fac Was Fac Gar Fac Gar Total Allies 65 | . . . . 10 . 6 2 . 5 5 18 19 . . . . Largest Group 19 | . . . . 10 1 6 3 . 2 2 18 19 11 . . . Highest-Rated Group 705 | . . . . 88 8 50 32 . 42 81 705 696 400 . . . Highest-Rated Ally 81 | . . . . 16 8 10 32 . 32 81 74 50 46 . . . Total Orders 4 | . . . . . . 2 2 . . . . . . . . . DROP 2 | . . . . . . 1 1 . . . . . . . . . COLLECT 2 | . . . . . . 1 1 . . . . . . . . . Ally Attacks 527 | . . . . 127 . 128 23 . 11 12 10 155 61 . . . Total Damage 9755 | . . . . 1236 . 553 380 . 292 369 233 5368 1324 . . . Kills 73 | . . . . 17 . 24 4 . 3 1 3 12 9 . . . Allies Corrupted 2 | . . . . . . . . . 1 . . . 1 . . . Allies Melted . | . . . . . . . . . . . . . . . . . Intel | -11 -10 -10 -9 -9 -9 -9 -7 -7 -7 -7 -6 -6 -6 -6 -6 -6 ------- Run | Scr Mat Min Mat Sto Gar Rec Fac Gar Fac Gar Fac Was Fac Gar Fac Gar Robot Analysis Total 2 | . 2 . . . . . . . . . . . . . . . Derelict Logs Recovered 1 | . . 1 . . . . . . . . . . . . . . Drone Launches . | . . . . . . . . . . . . . . . . . Drone Recoveries . | . . . . . . . . . . . . . . . . . Exploration | -11 -10 -10 -9 -9 -9 -9 -7 -7 -7 -7 -6 -6 -6 -6 -6 -6 ------------- Run | Scr Mat Min Mat Sto Gar Rec Fac Gar Fac Gar Fac Was Fac Gar Fac Gar Turns Passed 18156 | 77 1964 523 3086 1072 436 1523 3474 490 979 1049 964 505 516 1040 255 203 Spaces Moved 8995 | 44 934 227 989 314 147 523 1420 233 992 869 617 352 249 352 525 208 Core 479 | 7 . . . . . . . . 127 . 4 241 . 64 36 . Treads 3648 | 37 444 . 771 314 147 523 764 . . . . 111 249 288 . . Legs 1066 | . 490 227 218 . . . . . . . 131 . . . . . Wheels 2658 | . . . . . . . 656 233 418 869 482 . . . . . Hover 447 | . . . . . . . . . 447 . . . . . . . Flight 697 | . . . . . . . . . . . . . . . 489 208 Fastest Speed 34 | 50 160 200 160 260 260 260 145 160 48 93 93 100 160 100 34 34 Average Speed 160 | 143 181 200 191 265 260 260 214 166 79 94 126 119 167 234 40 35 Slowest Speed 1150 | 160 260 200 360 360 260 260 260 175 160 115 280 160 260 1150 100 40 Overloaded Moves . | . . . . . . . . . . . . . . . . . Propulsion Burnouts . | . . . . . . . . . . . . . . . . . Robots Hopped 3 | . . . . . . . . . . . . . . . 3 . Cave-ins Triggered . | . . . . . . . . . . . . . . . . . Exploration Rate (%) 48 | 4 99 49 83 60 36 93 26 43 25 80 18 91 10 49 16 39 Regions Visited 16 Branch Regions 3 Pre-discovered Areas . | . . . . . . . . . . . . . . . . . Known Exits Taken 6 | . . . 1 1 . . 1 . 1 . . . 1 . 1 . Unknown Exits Taken 4 | 1 1 1 . . . 1 . . . . . . . . . . Scrap Searched 1 | . . 1 . . . . . . . . . . . . . . Spaces Dug 66 | . . 31 . . 10 . 6 . 7 5 7 . . . . . Terrain Destroyed 577 | . . 52 17 1 48 12 86 42 25 153 130 . 1 . 10 . Melee 1 | . . . . . . . . . . . 1 . . . . . Projectile 22 | . . . 17 1 . . 2 . . . 1 . 1 . . . AOE 554 | . . 52 . . 48 12 84 42 25 153 128 . . . 10 . Terrain Rammed . | . . . . . . . . . . . . . . . . . Walls Destroyed . | . . . . . . . . . . . . . . . . . Machines Disabled . | . . . . . . . . . . . . . . . . . Actions | -11 -10 -10 -9 -9 -9 -9 -7 -7 -7 -7 -6 -6 -6 -6 -6 -6 --------- Run | Scr Mat Min Mat Sto Gar Rec Fac Gar Fac Gar Fac Was Fac Gar Fac Gar Total 11730 | 55 1068 272 1939 515 181 685 1667 306 1164 998 744 435 319 486 560 336 Wait 1511 | 5 35 22 751 155 5 73 67 . 122 1 33 72 38 21 18 93 Move 8978 | 43 933 226 988 314 146 522 1420 232 992 868 617 351 248 351 519 208 Hop 3 | . . . . . . . . . . . . . . . 3 . Pick Up 95 | 1 10 4 16 3 3 . 17 5 1 12 5 . . 14 4 . Fast Attach 100 | 6 6 1 15 3 . . 10 2 14 6 10 8 2 12 5 . Attach 49 | . 2 1 5 2 . . 15 1 1 4 2 . 3 7 6 . Detach 29 | . . . 2 2 . . 2 . 3 4 2 . 4 7 3 . Swap 95 | . 8 2 12 4 6 . 23 5 6 14 12 . . 3 . . Drop 65 | . 6 . 23 . . . 4 1 6 4 10 4 . 6 1 . Fire 469 | . 66 16 121 31 13 1 104 19 15 31 27 . 11 13 1 . Melee 104 | . . . . . . . . . 3 41 8 . 12 40 . . Ram 3 | . . . . . . . 3 . . . . . . . . . Kick 3 | . 1 . . . . . . . . . 2 . . . . . Crush 12 | . 1 . 6 1 . 1 2 . . . . . 1 . . . Escape Stasis 123 | . . . . . 8 . . 40 . 12 16 . . 12 . 35 Rewire 91 | . . . . . . 88 . 1 1 1 . . . . . . Trap . | . . . . . . . . . . . . . . . . . Miscellaneous . | . . . . . . . . . . . . . . . . . Route ------- -11/Scrapyard -10/Materials (discovered 4 exits: *Mat x3 / [*Min]) -10/Mines -9/Materials (discovered 3 exits: [*Mat x2] / *Sto) -9/Storage (discovered 2 exits: [*Mat] / Gar) -9/Garrison -9/Recycling -7/Factory (discovered 2 exits: *Fac / Gar) -7/Garrison -7/Factory (discovered 3 exits: *Fac / [*Low] / Gar) -7/Garrison (discovered 3 exits: *Fac x3) -6/Factory -6/Waste -6/Factory -6/Garrison -6/Factory -6/Garrison (discovered 1 exit: [*Fac]) History --------- Turn | Location | Event 9 | -11/Scrapyard | Discovered new exit (range 15) 78 | -11/Scrapyard | Entered Materials 128 | -10/Materials | Discovered new exit (range 15) 225 | -10/Materials | Discovered new exit (range 11) 310 | -10/Materials | Build established: Mutant 413 | -10/Materials | Discovered new exit (range 11) 683 | -10/Materials | Discovered new exit (range 13) 1322 | -10/Materials | Build established: Scavenger-Mutant 2042 | -10/Materials | Entered Mines 2043 | -10/Mines | Assembled infested the area 2146 | -10/Mines | Core integrity fell below 50% 2184 | -10/Mines | Learned Materials stockpile data 2334 | -10/Mines | Build established: Mutant 2522 | -10/Mines | Found a damaged Exp. Sensor Array with a note attached 2526 | -10/Mines | Found Prototype Device 2549 | -10/Mines | Discovered new exit (range 8) 2565 | -10/Mines | Entered Materials 2565 | -9/Materials | Evolved 2 slots: Propulsion x1, Utility x1 2565 | -9/Materials | Identified Exp. Sensor Array 2785 | -9/Materials | Repaired Exp. Sensor Array 2857 | -9/Materials | Build established: Scavenger-Mutant 3210 | -9/Materials | Build established: Mutant 3860 | -9/Materials | Discovered new exit (range 16) 4565 | -9/Materials | First assault squad dispatched 4979 | -9/Materials | Discovered new exit (range 16) 5199 | -9/Materials | Discovered new exit (range 13) 5380 | -9/Materials | Core integrity fell below 50% 5405 | -9/Materials | Repaired Broken Exp. Sensor Array? 5648 | -9/Materials | Identified exit to Storage 5651 | -9/Materials | Entered Storage 5773 | -9/Storage | Repaired Imp. Treads 6111 | -9/Storage | Assisted by bots powering up and referring to "LRC-V3" 6198 | -9/Storage | Core integrity fell below 20% 6415 | -9/Storage | Build established: Commander-Mutant 6657 | -9/Storage | Discovered new exit (range 15) 6718 | -9/Storage | Identified exit to Garrison 6723 | -9/Storage | Entered Garrison 6723 | -9/Garrison | Accompanied by 1 ally 6736 | -9/Garrison | Installed Relay Interface Framework 6803 | -9/Garrison | Build established: Mutant 6850 | -9/Garrison | Triggered checkpoint 6857 | -9/Garrison | Triggered checkpoint 6912 | -9/Garrison | Destroyed 10 combat bots 6990 | -9/Garrison | Triggered checkpoint 7032 | -9/Garrison | Garrison Relay disabled 7128 | -9/Garrison | Discovered new exit (range 12) 7159 | -9/Garrison | Entered Recycling 7228 | -9/Recycling | Spotter reported a threat 7256 | -9/Recycling | Spotter reported a threat 7258 | -9/Recycling | Spotter reported a threat 7275 | -9/Recycling | Spotter reported a threat 7281 | -9/Recycling | Spotter reported a threat 7283 | -9/Recycling | Spotter reported a threat 7311 | -9/Recycling | Spotter reported a threat 7326 | -9/Recycling | Spotter reported a threat 7333 | -9/Recycling | Spotter reported a threat 7348 | -9/Recycling | Spotter reported a threat 7357 | -9/Recycling | Spotter reported a threat 7410 | -9/Recycling | Spotter reported a threat 7460 | -9/Recycling | Spotter reported a threat 7478 | -9/Recycling | Spotter reported a threat 7480 | -9/Recycling | Spotter reported a threat 7488 | -9/Recycling | Spotter reported a threat 7502 | -9/Recycling | Spotter reported a threat 7504 | -9/Recycling | Spotter reported a threat 7526 | -9/Recycling | Spotter reported a threat 7530 | -9/Recycling | Spotter reported a threat 7533 | -9/Recycling | Spotter reported a threat 7539 | -9/Recycling | Spotter reported a threat 7557 | -9/Recycling | Spotter reported a threat 7579 | -9/Recycling | Spotter reported a threat 7586 | -9/Recycling | Spotter reported a threat 7600 | -9/Recycling | Spotter reported a threat 7610 | -9/Recycling | Spotter reported a threat 7610 | -9/Recycling | Spotter reported a threat 7628 | -9/Recycling | Spotter reported a threat 7630 | -9/Recycling | Spotter reported a threat 7638 | -9/Recycling | Spotter reported a threat 7661 | -9/Recycling | Spotter reported a threat 7664 | -9/Recycling | Spotter reported a threat 7762 | -9/Recycling | Spotter reported a threat 7764 | -9/Recycling | Spotter reported a threat 7780 | -9/Recycling | Spotter reported a threat 7810 | -9/Recycling | Spotter reported a threat 7931 | -9/Recycling | Spotter reported a threat 7979 | -9/Recycling | Spotter reported a threat 7984 | -9/Recycling | Spotter reported a threat 7996 | -9/Recycling | Spotter reported a threat 7998 | -9/Recycling | Spotter reported a threat 8010 | -9/Recycling | Spotter reported a threat 8016 | -9/Recycling | Spotter reported a threat 8032 | -9/Recycling | Spotter reported a threat 8037 | -9/Recycling | Spotter reported a threat 8051 | -9/Recycling | Spotter reported a threat 8069 | -9/Recycling | Spotter reported a threat 8082 | -9/Recycling | Spotter reported a threat 8085 | -9/Recycling | Spotter reported a threat 8104 | -9/Recycling | Spotter reported a threat 8143 | -9/Recycling | Build established: Commander-Mutant 8143 | -9/Recycling | Spotter reported a threat 8208 | -9/Recycling | Spotter reported a threat 8261 | -9/Recycling | Spotter reported a threat 8294 | -9/Recycling | Spotter reported a threat 8314 | -9/Recycling | Spotter reported a threat 8320 | -9/Recycling | Spotter reported a threat 8332 | -9/Recycling | Spotter reported a threat 8373 | -9/Recycling | Spotter reported a threat 8382 | -9/Recycling | Spotter reported a threat 8392 | -9/Recycling | Spotter reported a threat 8426 | -9/Recycling | Spotter reported a threat 8436 | -9/Recycling | Spotter reported a threat 8437 | -9/Recycling | Spotter reported a threat 8440 | -9/Recycling | Spotter reported a threat 8485 | -9/Recycling | Spotter reported a threat 8486 | -9/Recycling | Spotter reported a threat 8493 | -9/Recycling | Spotter reported a threat 8507 | -9/Recycling | Spotter reported a threat 8531 | -9/Recycling | Spotter reported a threat 8531 | -9/Recycling | Spotter reported a threat 8531 | -9/Recycling | Spotter reported a threat 8576 | -9/Recycling | Spotter reported a threat 8576 | -9/Recycling | Spotter reported a threat 8576 | -9/Recycling | Spotter reported a threat 8576 | -9/Recycling | Spotter reported a threat 8598 | -9/Recycling | Discovered new exit (range 13) 8628 | -9/Recycling | Spotter reported a threat 8671 | -9/Recycling | Spotter reported a threat 8682 | -9/Recycling | Entered Factory 8682 | -7/Factory | Accompanied by 3 allies 8682 | -7/Factory | Evolved 4 slots: Propulsion x1, Utility x3 8975 | -7/Factory | Build established: Hacker-Mutant 9049 | -7/Factory | P-60 Hacker assimilated allied Mercenary 2l 9734 | -7/Factory | Build established: Mutant 10198 | -7/Factory | Discovered new exit (range 3) 10324 | -7/Factory | Lost 4 parts (1p3u) 10682 | -7/Factory | First assault squad dispatched 10933 | -7/Factory | Lost 4 parts (2n2u) 11605 | -7/Factory | Lost 5 parts (1p1n3u) 12106 | -7/Factory | Garrison activated, responded to threat 12148 | -7/Factory | Destroyed 7 combat bots 12156 | -7/Factory | Identified exit to Garrison 12156 | -7/Factory | Entered Garrison 12164 | -7/Garrison | Expanded RIF knowledge: Hotswap 12261 | -7/Garrison | Triggered checkpoint 12299 | -7/Garrison | Destroyed 10 combat bots 12410 | -7/Garrison | Triggered checkpoint 12430 | -7/Garrison | Garrison Relay disabled 12530 | -7/Garrison | Triggered checkpoint 12540 | -7/Garrison | Discovered new exit (range 14) 12646 | -7/Garrison | Entered Factory 12700 | -7/Factory | Build established: Bothacker-Mutant 12780 | -7/Factory | Lost 6 parts (1p1n3u1w) 12940 | -7/Factory | Fabricated Imp. Hover Unit (x2) 13106 | -7/Factory | Discovered new exit (range 16) 13227 | -7/Factory | Garrison activated, responded to threat 13245 | -7/Factory | Discovered new exit (range 15) 13274 | -7/Factory | Identified exit to Garrison 13551 | -7/Factory | Core integrity fell below 50% 13625 | -7/Factory | Identified exit to Garrison 13625 | -7/Factory | Entered Garrison 13680 | -7/Garrison | Triggered checkpoint 13716 | -7/Garrison | Triggered checkpoint 13720 | -7/Garrison | P-60 Hacker assimilated allied Trooper 4a 13841 | -7/Garrison | Discovered new exit (range 8) 13916 | -7/Garrison | Triggered checkpoint 13964 | -7/Garrison | Discovered new exit (range 10) 13980 | -7/Garrison | Expanded RIF knowledge: Threat Obfuscation 14064 | -7/Garrison | Spotted B-75 Beast 14064 | -7/Garrison | Spotted B-75 Beast 14118 | -7/Garrison | Garrison Relay disabled 14134 | -7/Garrison | Triggered checkpoint 14242 | -7/Garrison | Triggered checkpoint 14258 | -7/Garrison | Garrison Relay disabled 14440 | -7/Garrison | Triggered checkpoint 14530 | -7/Garrison | Garrison Relay disabled 14586 | -7/Garrison | Destroyed B-75 Beast 14602 | -7/Garrison | Destroyed B-75 Beast 14658 | -7/Garrison | Discovered new exit (range 14) 14674 | -7/Garrison | Entered Factory 14674 | -6/Factory | Evolved 2 slots: Utility x2 15309 | -6/Factory | System corruption reached 10% 15545 | -6/Factory | Cargo convoy interrupted 15638 | -6/Factory | Sucked down chute 15638 | -6/Factory | Entered Waste 15668 | -6/Waste | Lost 5 parts (4n1u) 15687 | -6/Waste | Spotted C-40 Crusher 15687 | -6/Waste | Spotted C-40 Crusher 15719 | -6/Waste | Spotted C-40 Crusher 15750 | -6/Waste | Spotted C-40 Crusher 15802 | -6/Waste | Spotted C-40 Crusher 15821 | -6/Waste | Warlord forces began an assault 15864 | -6/Waste | Allies destroyed C-40 Crusher 15879 | -6/Waste | Spotted C-40 Crusher 15885 | -6/Waste | Allies destroyed C-40 Crusher 15918 | -6/Waste | Allies destroyed C-40 Crusher 15954 | -6/Waste | Build established: Mutant 15970 | -6/Waste | Allies destroyed C-40 Crusher 16002 | -6/Waste | Found Damper Plating 16077 | -6/Waste | Discovered new exit (range 12) 16131 | -6/Waste | Identified exit to Factory 16143 | -6/Waste | Entered Factory 16143 | -6/Factory | Accompanied by 11 allies 16270 | -6/Factory | Build established: Scavenger-Mutant 16580 | -6/Factory | Garrison activated, responded to threat 16651 | -6/Factory | Identified exit to Garrison 16659 | -6/Factory | Entered Garrison 16700 | -6/Garrison | Triggered checkpoint 16904 | -6/Garrison | Spotted B-75 Beast 17011 | -6/Garrison | Destroyed B-75 Beast 17370 | -6/Garrison | Triggered checkpoint 17453 | -6/Garrison | Garrison Relay disabled 17542 | -6/Garrison | Triggered checkpoint 17586 | -6/Garrison | Triggered checkpoint 17593 | -6/Garrison | Core integrity fell below 50% 17658 | -6/Garrison | Lost 10 parts (1p3n5u1w) 17674 | -6/Garrison | Discovered new exit (range 15) 17689 | -6/Garrison | Identified exit to Factory 17695 | -6/Garrison | Expanded RIF knowledge: Robot Detection 17699 | -6/Garrison | Entered Factory 17881 | -6/Factory | Build established: Mutant 17954 | -6/Factory | Identified exit to Garrison 17954 | -6/Factory | Entered Garrison 18004 | -6/Garrison | Triggered checkpoint 18128 | -6/Garrison | Core integrity fell below 20% 18129 | -6/Garrison | Discovered new exit (range 14) 18152 | -6/Garrison | Triggered checkpoint 18157 | -6/Garrison | Destroyed by G-50 Soldier with Heavy Laser Last Messages --------------- 18008_ System corrupted: Matter fused (-5). 18008_ Field strength at 50. 18009_ Field strength at 45. 18010_ Field strength at 40. 18011_ Field strength at 35. 18012_ Field strength at 30. 18013_ Field strength at 25. 18014_ Field strength at 20. 18015_ Field strength at 15. 18016_ Field strength at 10. 18017_ Field strength at 5. 18018_ Stasis field depleted. 18052_ System corrupted: Heat flow error (+278). 18072_ System corrupted: Component data lost. 18104_ System corrupted: Matter fused (-9). 18129_ EXIT=FOUND 18130_ VTOL Module destroyed. 18137_ Relay Coupler [Swarmer] destroyed. 18146_ VS0K5WIH O/04WLW#/VMR,5Y/BFIBJH9 18152_ Beams of light sweep through the air. An alarm sounds. Map ----- +----------------------------------------------------+ | ?????????????????????????????????????????????????? | | ?????????????????????????????????????????????????? | | ?????????????????????????????????????????????????? | | ?????????????????????????????????????????????????? | | ?????????????????????????????????????????????????? | | ?????????????????????????????????????????????????? | | ?????????????????????????????????????????????????? | | ?????????????????????????????????????????????????? | | ?????????????????????????????????????????????????? | | ?????????????????????????????????????????????????? | | ??????????????????????????? ?????????????????????? | | ??????????????????????????? ?????????????????????? | | ?????????????????????????## ?????????????????????? | | ????????????????????????? ?????????????????????? | | ????????????????????????? ?????????????????????? | | ????????????????????????? #?????????????????????? | | ????????????????????????? #?????????????????????? | | ????????????????????????# #?????????????????????? | | ????????????????????????# #?????????????????????? | | ????????????????????????# #?????????????????????? | | ????????????????????????# #?????????????????????? | | ????????????????????????# #?????????????????????? | | ????????????????????????# #?????????????????????? | | ??Y? ??????????????????# #?????????????????????? | | ??## ##""""######??????# #??????? ?????????????? | | ??# ########@ ### " ???????????? | | ?? /g """?????????????? | | ?? ### " ???????????? | | ??# ?# ## ###########???? ???????????? | | ??# ## ## ###??????????????? "??????????? | | ??" #??????????????????"??????????? | | ??" #?????????????????????????????? | | ??" #?????????????????????????????? | | ??" #?????????????????????????????? | | ??# ## ## ###?????????????Y???????????????? | | ### ## ## #???????????????????????????????? | | #???????????????????????????????? | | #???????????????????????????????? | | ??# #???????????????????????????????? | | ??## ##""""## #???????????????????????????????? | | ???# #??????# #???????????????????????????????? | | ???# #??????# #???????????????????????????????? | | ???# #??????# #???????????????????????????????? | | ???# #??????# #???????????????????????????????? | | ???# #??????# ########????????Y???????????????? | | #### #??????# #????????????????????????? | | #??????# ###### #????????????????????????? | | #??????# #????# #????????????????????????? | | #######??????# #????# #???????????????????????? | | ?????????????# ###### ######################## < | +----------------------------------------------------+ Best States ------------- Heat Dissipation 78 Coolant Potential 65 Energy Generation 23 Energy Capacity 550 Matter Stores 539 Matter Capacity 550 Sight Range 16 Robot Scan Range 20 Terrain Scan Density 10 EM Shielding 2 Armor Coverage 2200 Resistance: KI 30 Resistance: TH 15 Resistance: EX 25 Resistance: EM 90 Utility Shielding 66 Point Defense Rating 80 Evasion (%) 63 Targeting Accuracy 5 Melee Accuracy 5 Core Analysis 6 Recoil Reduction 4 Particle Charging 20 Offensive Hacking 20 Defensive Hacking 10 Relay Coupler Types 99 Relay Coupler Value 4 Item Schematics ----------------- Exp. Sensor Array | -9/Materials | Scanalyzed EM Pulse Gun | -9/Materials | Extracted Hvy. Assault Rifle | -9/Materials | Extracted Imp. Ion Engine | -9/Materials | Extracted Hpw. Tractor Beam | -9/Materials | Extracted Imp. EM Shotgun | -9/Materials | Extracted Imp. Hover Unit | -9/Materials | Extracted Lgt. EM Pulse Cannon | -9/Materials | Extracted Mace | -9/Materials | Extracted Assault Rifle | -9/Materials | Extracted Shield Generator | -9/Materials | Extracted Railgun | -6/Factory | Downloaded Huge Storage Unit | -6/Factory | Extracted Thermal Shield | -6/Factory | Extracted Adv. Weight Redist. System | -6/Factory | Extracted Robot Schematics ------------------ None Fabricated ------------ Imp. Hover Unit | x2 | -7/Factory Alien Tech Used ----------------- None Achievements -------------- None Challenges ------------ None Game ------ Seed RiotRecyclingMeganuke Manual? 0 Play Time 02:19:38 Cumulative 1086.6 hours Start 2021.07.06 @ 08:48:55 End 2021.07.06 @ 12:08:59 Sessions 1 Manual Loads 0 Difficulty Rogue Special Mode None Game No. 677 Rogue 677 Adventurer 0 Explorer 0 Win Type - Total 18 Types 10/1/4/3/0/0/0/0/0 Lore% 90 Gallery% 92 Achievement% 81 Wizard Run 0 Options --------- ASCII 0 Keyboard 0 Movement Mouse Keybinds 0 Fullscreen 1 Font 24/Smallcaps Map View 76x50 Tactical HUD 1 Map Filters NONE Filters NONE Steam 1 RUN: 7f790b5e-6e9b-461a-a0f6-bba7330444e1